[Event "Asian Amateur Rapid 2024"]
[Site "Al Ain"]
[Date "2024.12.15"]
[Round "5.16"]
[White "Ebenezer, Joseph"]
[Black "Medetuly, Nurdaulet"]
[Result "0-1"]
[ECO "B26"]
[WhiteElo "1993"]
[BlackElo "1618"]
[Annotator "NA COMBH"]
[PlyCount "72"]
[EventDate "2024.12.15"]
[EventType "swiss"]
[EventCountry "UAE"]
[SourceTitle "playchess.com"]
[Source "ChessBase"]
[SourceQuality "1"]
[TimeControl "900+10"]

1. e4 {[%emt 0:00:01]} c5 {[%emt 0:00:05]} 2. Nc3 {[%emt 0:00:02]} d6 {[%emt 0:00:08]} 3. g3 {[%emt 0:00:01]} Nf6 {[%emt 0:00:10]} 4. Bg2 {[%emt 0:00:01]} g6 {[%emt 0:00:01]} 5. d3 {[%emt 0:00:01]} Bg7 {[%emt 0:00:01]} 6. h3 {[%emt 0:00:01]} Nc6 {[%emt 0:00:08]} 7. Be3 {[%emt 0:00:00]} Qb6 {[%emt 0:00:49]} 8. Rb1 {[%emt 0:02:38]} a5 {[%emt 0:00:06]} 9. Qd2 {[%emt 0:00:08]} O-O {[%emt 0:00:12]} 10. Bh6 {[%emt 0:00:02]} Nd4 {[%emt 0:01:20]} 11. Bxg7 {[%emt 0:00:04]} Kxg7 {[%emt 0:00:02]} 12. Nge2 {[%emt 0:00:14]} Bd7 {[%emt 0:01:02]} 13. Nxd4 {[%emt 0:00:39]} cxd4 {[%emt 0:00:02]} 14. Ne2 {[%emt 0:00:03]} e5 {[%emt 0:00:14]} 15. f4 {[%emt 0:00:15]} Rac8 {[%emt 0:00:51]} 16. O-O {[%emt 0:01:04]} Qc5 {[%emt 0:01:35]} 17. Rbc1 {[%emt 0:00:02]} b5 {[%emt 0:00:50]} 18. Kh1 {[%emt 0:01:00]} b4 {[%emt 0:00:52]} 19. c3 {[%emt 0:01:23]} dxc3 {[%emt 0:00:44]} 20. bxc3 {[%emt 0:00:02]} bxc3 {[%emt 0:01:38]} 21. Nxc3 {[%emt 0:03:39]} Qd4 {[%emt 0:01:30]} 22. Ne2 {[%emt 0:00:17]} Qb4 {[%emt 0:01:27]} 23. Qe3 {[%emt 0:00:56]} Rxc1 {[%emt 0:01:07]} 24. Rxc1 {[%emt 0:01:44]} Qb2 {[%emt 0:00:56]} 25. fxe5 {[%emt 0:01:14]} dxe5 {[%emt 0:00:23]} 26. Rc5 {[%emt 0:01:21]} Qxa2 {[%emt 0:00:19]} 27. Kh2 {[%emt 0:00:14]} Re8 {[%emt 0:00:29]} 28. Nc3 {[%emt 0:00:47]} Qa3 {[%emt 0:00:39]} 29. g4 {[%emt 0:00:06]} Bxg4 {[%emt 0:00:41]} 30. d4 {[%emt 0:00:23]} exd4 {[%emt 0:00:43]} 31. Qxd4 {[%emt 0:00:01]} Be6 {[%emt 0:00:03]} 32. Nd5 {[%emt 0:00:25]} Bxd5 {[%emt 0:00:38]} 33. exd5 {[%emt 0:00:05]} Qb4 {[%emt 0:00:28]} 34. Rc4 {[%emt 0:00:10]} Qd6+ {[%emt 0:00:01]} 35. Kg1 {[%emt 0:00:11]} Qg3 {[%emt 0:00:21]} 36. Rc1 {[%emt 0:00:19] Check Result:-#4} Re2 {[%emt 0:00:14]} 0-1

[Event "Asian Amateur Rapid 2024"]
[Site "Al Ain"]
[Date "2024.12.15"]
[Round "5.17"]
[White "Kim, Taewoo A"]
[Black "Al Namas, Kanan"]
[Result "0-1"]
[ECO "D11"]
[WhiteElo "1863"]
[BlackElo "1813"]
[Annotator "NA COMBH"]
[PlyCount "72"]
[EventDate "2024.12.15"]
[EventType "swiss"]
[EventCountry "UAE"]
[SourceTitle "playchess.com"]
[Source "ChessBase"]
[SourceQuality "1"]
[TimeControl "900+10"]

1. d4 {[%emt 0:00:03]} d5 {[%emt 0:00:01]} 2. c4 {[%emt 0:00:02]} c6 {[%emt 0:00:01]} 3. Nf3 {[%emt 0:00:01]} Nf6 {[%emt 0:00:02]} 4. e3 {[%emt 0:00:01]} a6 {[%emt 0:00:02]} 5. c5 {[%emt 0:00:50]} Bf5 {[%emt 0:00:12]} 6. Nc3 {[%emt 0:00:10]} b5 {[%emt 0:00:10]} 7. Nh4 {[%emt 0:00:20]} Bg6 {[%emt 0:00:06]} 8. Nxg6 {[%emt 0:00:18]} hxg6 {[%emt 0:00:02]} 9. Bd3 {[%emt 0:01:40]} Nbd7 {[%emt 0:00:10]} 10. f4 {[%emt 0:00:33]} e6 {[%emt 0:01:19]} 11. Bd2 {[%emt 0:00:53]} Nh5 {[%emt 0:00:18]} 12. Qf3 {[%emt 0:02:12]} f5 {[%emt 0:03:39]} 13. Kf2 {[%emt 0:01:59]} Nhf6 {[%emt 0:00:24]} 14. h3 {[%emt 0:00:16]} Ne4+ {[%emt 0:00:14]} 15. Bxe4 {[%emt 0:00:10]} dxe4 {[%emt 0:00:02]} 16. Nxe4 {[%emt 0:00:27]} fxe4 {[%emt 0:00:02]} 17. Qxe4 {[%emt 0:00:01]} Kf7 {[%emt 0:00:46]} 18. b4 {[%emt 0:01:33]} Rc8 {[%emt 0:01:18]} 19. a4 {[%emt 0:00:35]} Nf6 {[%emt 0:00:07]} 20. Qf3 {[%emt 0:01:25]} Qd5 {[%emt 0:00:16]} 21. Qxd5 {[%emt 0:00:15]} exd5 {[%emt 0:00:21]} 22. Rhb1 {[%emt 0:00:53]} Ne4+ {[%emt 0:00:16]} 23. Ke2 {[%emt 0:00:01]} Be7 {[%emt 0:00:30]} 24. axb5 {[%emt 0:00:39]} axb5 {[%emt 0:00:01]} 25. Ra6 {[%emt 0:00:03]} Rhe8 {[%emt 0:01:08]} 26. Rba1 {[%emt 0:00:49]} g5 {[%emt 0:00:54]} 27. Rb6 {[%emt 0:02:05]} gxf4 {[%emt 0:02:02]} 28. Raa6 {[%emt 0:00:21]} fxe3 {[%emt 0:00:31]} 29. Be1 {[%emt 0:00:51]} Bf6 {[%emt 0:00:25]} 30. Rxc6 {[%emt 0:00:10]} Rxc6 {[%emt 0:04:51]} 31. Rxc6 {[%emt 0:00:44]} Bxd4 {[%emt 0:00:00]} 32. Rb6 {[%emt 0:00:00]} Bc3 {[%emt 0:00:00]} 33. Rxb5 {[%emt 0:00:00]} Bxe1 {[%emt 0:00:00]} 34. Kxe1 {[%emt 0:00:00]} Nc3 {[%emt 0:00:00]} 35. Rb7+ {[%emt 0:00:02]} Ke6 {[%emt 0:00:00]} 36. c6 {[%emt 0:00:37] Check Result:-#2} Ra8 {[%emt 0:00:00]} 0-1

[Event "Asian Amateur Rapid 2024"]
[Site "Al Ain"]
[Date "2024.12.15"]
[Round "5.18"]
[White "Daneshpour, S.A."]
[Black "Pathak Anshu Kr"]
[Result "1-0"]
[ECO "A10"]
[WhiteElo "1899"]
[BlackElo "1661"]
[Annotator "NA COMBH"]
[PlyCount "127"]
[EventDate "2024.12.15"]
[EventType "swiss"]
[EventCountry "UAE"]
[SourceTitle "playchess.com"]
[Source "ChessBase"]
[SourceQuality "1"]
[TimeControl "900+10"]

1. g3 {[%emt 0:00:01]} e6 {[%emt 0:00:05]} 2. Bg2 {[%emt 0:00:03]} d5 {[%emt 0:00:02]} 3. c4 {[%emt 0:00:01]} c6 {[%emt 0:00:06]} 4. b3 {[%emt 0:00:06]} f5 {[%emt 0:15:37]} 5. Bb2 {[%emt 0:00:05]} Nf6 {[%emt 0:00:00]} 6. Nf3 {[%emt 0:00:06]} Be7 {[%emt 0:00:00]} 7. O-O {[%emt 0:00:02]} O-O {[%emt 0:00:00]} 8. d3 {[%emt 0:00:17]} Nbd7 {[%emt 0:00:00]} 9. Nbd2 {[%emt 0:00:01]} Nc5 {[%emt 0:00:00]} 10. Qc2 {[%emt 0:00:07]} Qc7 {[%emt 0:00:00]} 11. Be5 {[%emt 0:00:06]} Bd6 {[%emt 0:00:00]} 12. Bxd6 {[%emt 0:00:18]} Qxd6 {[%emt 0:00:00]} 13. Rac1 {[%emt 0:00:25]} b6 {[%emt 0:00:00]} 14. cxd5 {[%emt 0:00:18]} cxd5 {[%emt 0:00:00]} 15. d4 {[%emt 0:00:06]} Nce4 {[%emt 0:00:00]} 16. Ne5 {[%emt 0:00:13]} Ba6 {[%emt 0:00:00]} 17. Ndf3 {[%emt 0:01:05]} Rac8 {[%emt 0:00:00]} 18. Qb2 {[%emt 0:00:02]} Bb5 {[%emt 0:00:00]} 19. Rxc8 {[%emt 0:00:25]} Rxc8 {[%emt 0:00:00]} 20. Rc1 {[%emt 0:00:02]} Qd8 {[%emt 0:00:00]} 21. e3 {[%emt 0:01:27]} h6 {[%emt 0:00:00]} 22. Qa3 {[%emt 0:00:38]} Rxc1+ {[%emt 0:00:00]} 23. Qxc1 {[%emt 0:00:02]} Kh7 {[%emt 0:00:00]} 24. Ne1 {[%emt 0:01:12]} Qe7 {[%emt 0:00:00]} 25. a4 {[%emt 0:00:31]} Be8 {[%emt 0:00:00]} 26. N1d3 {[%emt 0:00:07]} Bh5 {[%emt 0:00:00]} 27. f3 {[%emt 0:00:19]} Nd6 {[%emt 0:00:00]} 28. Qc6 {[%emt 0:00:33]} Be8 {[%emt 0:00:00]} 29. Qc1 {[%emt 0:00:19]} Nf7 {[%emt 0:00:00]} 30. Nxf7 {[%emt 0:00:04]} Bxf7 {[%emt 0:00:00]} 31. Bf1 {[%emt 0:00:35]} Qb7 {[%emt 0:00:00]} 32. Ne5 {[%emt 0:00:13]} Be8 {[%emt 0:00:00]} 33. Bd3 {[%emt 0:00:26]} Kg8 {[%emt 0:00:00]} 34. Kf2 {[%emt 0:00:11]} Nd7 {[%emt 0:00:00]} 35. Qc6 {[%emt 0:00:39]} Qxc6 {[%emt 0:00:00]} 36. Nxc6 {[%emt 0:00:02]} a5 {[%emt 0:00:00]} 37. Ne7+ {[%emt 0:00:21]} Kf8 {[%emt 0:00:08]} 38. Nc8 {[%emt 0:00:04]} e5 {[%emt 0:00:55]} 39. Bb5 {[%emt 0:00:06]} exd4 {[%emt 0:00:13]} 40. exd4 {[%emt 0:00:02]} Nf6 {[%emt 0:00:30]} 41. Nxb6 {[%emt 0:00:13]} Bxb5 {[%emt 0:00:06]} 42. axb5 {[%emt 0:00:03]} Ke8 {[%emt 0:00:33]} 43. Ke3 {[%emt 0:00:05]} g5 {[%emt 0:00:42]} 44. Na4 {[%emt 0:00:30]} Kd7 {[%emt 0:00:34]} 45. h3 {[%emt 0:00:36]} Nh5 {[%emt 0:00:28]} 46. g4 {[%emt 0:00:03]} f4+ {[%emt 0:00:03]} 47. Ke2 {[%emt 0:00:33]} Nf6 {[%emt 0:00:20]} 48. Kd3 {[%emt 0:00:44]} Kc7 {[%emt 0:00:38]} 49. Kd2 {[%emt 0:01:08]} Ne8 {[%emt 0:00:32]} 50. Kd3 {[%emt 0:00:33]} Nf6 {[%emt 0:00:16]} 51. Ke2 {[%emt 0:00:14]} Ne8 {[%emt 0:00:13]} 52. Kd2 {[%emt 0:00:14]} Kd6 {[%emt 0:00:35]} 53. Kd3 {[%emt 0:00:20]} Kc7 {[%emt 0:00:23]} 54. Nc3 {[%emt 0:00:28]} Nf6 {[%emt 0:00:02]} 55. Kc2 {[%emt 0:00:09]} Kd6 {[%emt 0:00:49]} 56. Kb2 {[%emt 0:06:57]} Nd7 {[%emt 0:00:14]} 57. Ka3 {[%emt 0:00:00]} Nb6 {[%emt 0:00:03]} 58. Na4 {[%emt 0:00:00]} Nd7 {[%emt 0:00:26]} 59. b4 {[%emt 0:00:00]} axb4+ {[%emt 0:00:04]} 60. Kxb4 {[%emt 0:00:00]} Nf8 {[%emt 0:00:10]} 61. Nc5 {[%emt 0:00:00]} Ng6 {[%emt 0:00:04]} 62. Nd3 {[%emt 0:00:00]} Nh4 {[%emt 0:00:04]} 63. Ne5 {[%emt 0:00:00]} Kc7 {[%emt 0:00:33] Check Result:30.07} 64. Kc5 {[%emt 0:00:00]} 1-0

[Event "Asian Amateur Rapid 2024"]
[Site "Al Ain"]
[Date "2024.12.15"]
[Round "5.19"]
[White "Hayder, Hassan Shyaa"]
[Black "Muhammad Saifan Noushad Ibrahi"]
[Result "1-0"]
[ECO "B13"]
[WhiteElo "1991"]
[BlackElo "1534"]
[Annotator "NA COMBH"]
[PlyCount "57"]
[EventDate "2024.12.15"]
[EventType "swiss"]
[EventCountry "UAE"]
[SourceTitle "playchess.com"]
[Source "ChessBase"]
[SourceQuality "1"]
[TimeControl "900+10"]

1. e4 {[%emt 0:00:16]} c6 {[%emt 0:00:01]} 2. d4 {[%emt 0:00:02]} d5 {[%emt 0:00:00]} 3. exd5 {[%emt 0:00:03]} cxd5 {[%emt 0:00:02]} 4. Bd3 {[%emt 0:00:04]} Nc6 {[%emt 0:00:02]} 5. c3 {[%emt 0:00:01]} Nf6 {[%emt 0:00:03]} 6. Nf3 {[%emt 0:00:01]} Bg4 {[%emt 0:00:05]} 7. O-O {[%emt 0:00:08]} e6 {[%emt 0:00:01]} 8. h3 {[%emt 0:00:07]} Bh5 {[%emt 0:00:01]} 9. Bg5 {[%emt 0:00:13]} Bd6 {[%emt 0:00:35]} 10. Nbd2 {[%emt 0:00:10]} h6 {[%emt 0:00:08]} 11. Be3 {[%emt 0:00:09]} Qc7 {[%emt 0:00:09]} 12. g4 {[%emt 0:00:15]} Bg6 {[%emt 0:00:05]} 13. Bxg6 {[%emt 0:00:04]} fxg6 {[%emt 0:00:01]} 14. Qc2 {[%emt 0:00:02]} Qf7 {[%emt 0:00:23]} 15. Nh4 {[%emt 0:01:25]} g5 {[%emt 0:00:23]} 16. Ng6 {[%emt 0:00:04]} Rg8 {[%emt 0:00:04]} 17. f4 {[%emt 0:00:08]} gxf4 {[%emt 0:00:16]} 18. Bxf4 {[%emt 0:00:14]} O-O-O {[%emt 0:00:12]} 19. Bxd6 {[%emt 0:00:17]} Rxd6 {[%emt 0:01:02]} 20. Nf3 {[%emt 0:00:12]} Ne4 {[%emt 0:00:28]} 21. Nfe5 {[%emt 0:00:12]} Qc7 {[%emt 0:00:02]} 22. Rf7 {[%emt 0:00:20]} Qb6 {[%emt 0:00:03]} 23. Nxc6 {[%emt 0:00:04]} Rxc6 {[%emt 0:00:03]} 24. Ne7+ {[%emt 0:00:02]} Kb8 {[%emt 0:00:10]} 25. Nxg8 {[%emt 0:00:12]} e5 {[%emt 0:01:11]} 26. Ne7 {[%emt 0:00:18]} Re6 {[%emt 0:00:24]} 27. Nxd5 {[%emt 0:00:15]} Qc6 {[%emt 0:00:17]} 28. Rf8+ {[%emt 0:00:40]} Re8 {[%emt 0:00:45] Check Result:#12} 29. Rxe8+ {[%emt 0:00:01]} 1-0

[Event "Asian Amateur Rapid 2024"]
[Site "Al Ain"]
[Date "2024.12.15"]
[Round "5.20"]
[White "Saud Bader Huwair Alzarooni"]
[Black "Dadabaev, Zhanybek"]
[Result "1/2-1/2"]
[ECO "B22"]
[WhiteElo "1644"]
[BlackElo "1927"]
[Annotator "NA COMBH"]
[PlyCount "131"]
[EventDate "2024.12.15"]
[EventType "swiss"]
[EventCountry "UAE"]
[SourceTitle "playchess.com"]
[Source "ChessBase"]
[SourceQuality "1"]
[TimeControl "900+10"]

1. e4 {[%emt 0:00:01]} c5 {[%emt 0:01:36]} 2. c3 {[%emt 0:00:03]} d5 {[%emt 0:00:01]} 3. exd5 {[%emt 0:00:01]} Qxd5 {[%emt 0:00:01]} 4. d4 {[%emt 0:00:02]} Nf6 {[%emt 0:00:02]} 5. Nf3 {[%emt 0:00:02]} Bg4 {[%emt 0:00:01]} 6. Nbd2 {[%emt 0:00:02]} e6 {[%emt 0:00:05]} 7. dxc5 {[%emt 0:00:43]} Bxc5 {[%emt 0:00:38]} 8. Qa4+ {[%emt 0:00:01]} Nbd7 {[%emt 0:00:35]} 9. Bc4 {[%emt 0:00:16]} Qd6 {[%emt 0:00:40]} 10. O-O {[%emt 0:00:03]} O-O {[%emt 0:00:03]} 11. h3 {[%emt 0:00:20]} Bh5 {[%emt 0:00:09]} 12. Be2 {[%emt 0:00:26]} a6 {[%emt 0:01:18]} 13. Nc4 {[%emt 0:00:08]} Qc7 {[%emt 0:00:10]} 14. Qb3 {[%emt 0:01:07]} b5 {[%emt 0:00:25]} 15. Ne3 {[%emt 0:00:15]} Ba7 {[%emt 0:01:58]} 16. Qc2 {[%emt 0:00:43]} Rad8 {[%emt 0:00:07]} 17. Rd1 {[%emt 0:00:29]} Nc5 {[%emt 0:00:09]} 18. b3 {[%emt 0:01:59]} Bg6 {[%emt 0:02:02]} 19. Qb2 {[%emt 0:00:02]} Nce4 {[%emt 0:00:08]} 20. Bd2 {[%emt 0:02:59]} Nd5 {[%emt 0:01:25]} 21. c4 {[%emt 0:00:48]} Nxd2 {[%emt 0:00:18]} 22. cxd5 {[%emt 0:01:29]} Nxf3+ {[%emt 0:00:04]} 23. Bxf3 {[%emt 0:00:02]} Bxe3 {[%emt 0:00:44]} 24. fxe3 {[%emt 0:00:02]} exd5 {[%emt 0:00:02]} 25. Rxd5 {[%emt 0:01:38]} Rfe8 {[%emt 0:01:16]} 26. Qd4 {[%emt 0:00:44]} Rxd5 {[%emt 0:01:00]} 27. Qxd5 {[%emt 0:00:01]} Qc3 {[%emt 0:00:44]} 28. Qd4 {[%emt 0:02:48]} Qxe3+ {[%emt 0:00:02]} 29. Qxe3 {[%emt 0:00:02]} Rxe3 {[%emt 0:00:01]} 30. Rc1 {[%emt 0:01:09]} h6 {[%emt 0:00:21]} 31. Rc8+ {[%emt 0:00:21]} Kh7 {[%emt 0:00:02]} 32. Ra8 {[%emt 0:00:04]} Re6 {[%emt 0:01:16]} 33. Bb7 {[%emt 0:00:01]} Bb1 {[%emt 0:02:18]} 34. a3 {[%emt 0:01:27]} Re3 {[%emt 0:00:10]} 35. Bd5 {[%emt 0:00:27]} f6 {[%emt 0:00:48]} 36. Rxa6 {[%emt 0:00:03]} Ba2 {[%emt 0:00:06]} 37. a4 {[%emt 0:00:13]} bxa4 {[%emt 0:00:04]} 38. Rxa4 {[%emt 0:00:02]} Bxb3 {[%emt 0:00:27]} 39. Ra3 {[%emt 0:00:01]} Bxd5 {[%emt 0:00:07]} 40. Rxe3 {[%emt 0:00:01]} h5 {[%emt 0:00:04]} 41. Re7 {[%emt 0:00:02]} Kg6 {[%emt 0:00:01]} 42. Kf2 {[%emt 0:00:02]} f5 {[%emt 0:00:02]} 43. Ra7 {[%emt 0:00:02]} Be4 {[%emt 0:00:03]} 44. g3 {[%emt 0:00:04]} Kh6 {[%emt 0:00:08]} 45. Ke3 {[%emt 0:00:02]} g5 {[%emt 0:00:11]} 46. Ra6+ {[%emt 0:00:06]} Kg7 {[%emt 0:00:01]} 47. h4 {[%emt 0:00:25]} gxh4 {[%emt 0:00:30]} 48. gxh4 {[%emt 0:00:01]} Bb1 {[%emt 0:00:19]} 49. Kf4 {[%emt 0:00:02]} Bd3 {[%emt 0:00:04]} 50. Rb6 {[%emt 0:00:02]} Bc2 {[%emt 0:00:02]} 51. Kg5 {[%emt 0:00:02]} Kh7 {[%emt 0:00:12]} 52. Rh6+ {[%emt 0:00:02]} Kg7 {[%emt 0:00:01]} 53. Rb6 {[%emt 0:00:14]} Kh7 {[%emt 0:00:01]} 54. Kxh5 {[%emt 0:00:11]} Bd3 {[%emt 0:00:13]} 55. Kg5 {[%emt 0:00:04]} Bc2 {[%emt 0:00:01]} 56. h5 {[%emt 0:00:05]} Bd3 {[%emt 0:00:02]} 57. h6 {[%emt 0:00:17]} f4 {[%emt 0:00:02]} 58. Rb7+ {[%emt 0:00:04]} Kh8 {[%emt 0:00:02]} 59. Kxf4 {[%emt 0:00:08]} Bh7 {[%emt 0:00:02]} 60. Ke5 {[%emt 0:00:53]} Bc2 {[%emt 0:00:06]} 61. Kf6 {[%emt 0:00:13]} Bd3 {[%emt 0:00:13]} 62. Ra7 {[%emt 0:00:50]} Bc2 {[%emt 0:00:06]} 63. Kg5 {[%emt 0:00:17]} Bd3 {[%emt 0:00:04]} 64. Rd7 {[%emt 0:00:04]} Bc2 {[%emt 0:00:03]} 65. Rc7 {[%emt 0:00:01]} Bd3 {[%emt 0:00:02] Check Result:0.40} 66. h7 {[%emt 0:00:00]} 1/2-1/2

[Event "Asian Amateur Rapid 2024"]
[Site "Al Ain"]
[Date "2024.12.15"]
[Round "5.21"]
[White "Al Abdali, Zeyad Saleh"]
[Black "Abdulla Ateeq Alremaeithi"]
[Result "1-0"]
[ECO "E61"]
[WhiteElo "1744"]
[BlackElo "1639"]
[Annotator "NA COMBH"]
[PlyCount "107"]
[EventDate "2024.12.15"]
[EventType "swiss"]
[EventCountry "UAE"]
[SourceTitle "playchess.com"]
[Source "ChessBase"]
[SourceQuality "1"]
[TimeControl "900+10"]

1. d4 {[%emt 0:00:03]} Nf6 {[%emt 0:00:02]} 2. c4 {[%emt 0:00:05]} g6 {[%emt 0:00:04]} 3. Nf3 {[%emt 0:00:08]} Bg7 {[%emt 0:00:02]} 4. Nc3 {[%emt 0:00:02]} O-O {[%emt 0:00:03]} 5. Bf4 {[%emt 0:00:02]} d6 {[%emt 0:00:01]} 6. h3 {[%emt 0:00:02]} Nbd7 {[%emt 0:00:07]} 7. e3 {[%emt 0:00:01]} c6 {[%emt 0:00:02]} 8. a3 {[%emt 0:00:03]} a5 {[%emt 0:00:04]} 9. Be2 {[%emt 0:00:01]} Qe8 {[%emt 0:00:02]} 10. O-O {[%emt 0:00:04]} e5 {[%emt 0:00:02]} 11. Bh2 {[%emt 0:00:02]} h6 {[%emt 0:00:16]} 12. b4 {[%emt 0:00:05]} Nh7 {[%emt 0:00:08]} 13. c5 {[%emt 0:00:13]} dxc5 {[%emt 0:00:27]} 14. dxc5 {[%emt 0:00:22]} f5 {[%emt 0:00:08]} 15. Qb3+ {[%emt 0:00:28]} Kh8 {[%emt 0:00:03]} 16. Rfd1 {[%emt 0:00:17]} g5 {[%emt 0:00:21]} 17. Nd2 {[%emt 0:03:47]} Ndf6 {[%emt 0:01:10]} 18. Qc2 {[%emt 0:00:49]} g4 {[%emt 0:00:22]} 19. Nc4 {[%emt 0:01:05]} gxh3 {[%emt 0:00:25]} 20. gxh3 {[%emt 0:00:06]} Ng5 {[%emt 0:00:16]} 21. h4 {[%emt 0:01:21]} Nh3+ {[%emt 0:01:03]} 22. Kf1 {[%emt 0:00:31]} Ne4 {[%emt 0:00:09]} 23. f3 {[%emt 0:02:59]} Nxc3 {[%emt 0:04:37]} 24. Qxc3 {[%emt 0:00:08]} e4 {[%emt 0:00:13]} 25. Be5 {[%emt 0:00:09]} Qg6 {[%emt 0:00:29]} 26. Bxg7+ {[%emt 0:00:17]} Kh7 {[%emt 0:00:46]} 27. Ke1 {[%emt 0:00:39]} Qxg7 {[%emt 0:00:12]} 28. Qxg7+ {[%emt 0:00:04]} Kxg7 {[%emt 0:00:02]} 29. Nb6 {[%emt 0:02:08]} Rb8 {[%emt 0:00:10]} 30. Nd7 {[%emt 0:00:19]} Bxd7 {[%emt 0:00:25]} 31. Rxd7+ {[%emt 0:00:02]} Rf7 {[%emt 0:00:16]} 32. Rxf7+ {[%emt 0:00:48]} Kxf7 {[%emt 0:00:01]} 33. Bc4+ {[%emt 0:00:15]} Ke7 {[%emt 0:00:11]} 34. Ke2 {[%emt 0:00:13]} axb4 {[%emt 0:00:28]} 35. axb4 {[%emt 0:00:03]} b5 {[%emt 0:01:21]} 36. Bb3 {[%emt 0:00:23]} Rd8 {[%emt 0:00:20]} 37. Rh1 {[%emt 0:03:16]} Rd3 {[%emt 0:00:03]} 38. Bg8 {[%emt 0:00:00]} Rd8 {[%emt 0:00:18]} 39. Bh7 {[%emt 0:00:00]} Kf6 {[%emt 0:00:08]} 40. fxe4 {[%emt 0:00:00]} fxe4 {[%emt 0:00:12]} 41. Bxe4 {[%emt 0:00:00]} Re8 {[%emt 0:00:05]} 42. Rf1+ {[%emt 0:00:00]} Kg7 {[%emt 0:00:24]} 43. Bxc6 {[%emt 0:00:00]} Rb8 {[%emt 0:00:08]} 44. Bg2 {[%emt 0:01:10]} Ng5 {[%emt 0:00:27]} 45. hxg5 {[%emt 0:00:00]} hxg5 {[%emt 0:00:01]} 46. Rf5 {[%emt 0:00:00]} Kg6 {[%emt 0:00:02]} 47. Rd5 {[%emt 0:00:00]} Kh5 {[%emt 0:00:06]} 48. c6 {[%emt 0:00:00]} Kh4 {[%emt 0:00:10]} 49. c7 {[%emt 0:00:00]} Rc8 {[%emt 0:00:01]} 50. Rc5 {[%emt 0:00:00]} g4 {[%emt 0:00:07]} 51. Bb7 {[%emt 0:00:00]} g3 {[%emt 0:00:17]} 52. Bxc8 {[%emt 0:00:00]} g2 {[%emt 0:00:02]} 53. Rc1 {[%emt 0:00:00]} Kg3 {[%emt 0:00:06] Check Result:#5} 54. Bb7 {[%emt 0:00:00]} 1-0

[Event "Asian Amateur Rapid 2024"]
[Site "Al Ain"]
[Date "2024.12.15"]
[Round "5.22"]
[White "Aamer Saeed, Alyileili"]
[Black "Mosallam, Mohammad"]
[Result "1/2-1/2"]
[ECO "A83"]
[WhiteElo "1619"]
[BlackElo "1753"]
[Annotator "NA COMBH"]
[PlyCount "115"]
[EventDate "2024.12.15"]
[EventType "swiss"]
[EventCountry "UAE"]
[SourceTitle "playchess.com"]
[Source "ChessBase"]
[SourceQuality "1"]
[TimeControl "900+10"]

1. d4 {[%emt 0:00:01]} f5 {[%emt 0:00:13]} 2. e4 {[%emt 0:00:02]} fxe4 {[%emt 0:00:03]} 3. Nc3 {[%emt 0:00:02]} Nf6 {[%emt 0:00:05]} 4. Bg5 {[%emt 0:00:03]} g6 {[%emt 0:00:23]} 5. Bxf6 {[%emt 0:00:19]} exf6 {[%emt 0:00:02]} 6. Nxe4 {[%emt 0:00:02]} Bg7 {[%emt 0:00:09]} 7. Qd2 {[%emt 0:00:09]} O-O {[%emt 0:00:04]} 8. O-O-O {[%emt 0:00:05]} d5 {[%emt 0:00:35]} 9. Nc3 {[%emt 0:00:08]} Nc6 {[%emt 0:00:35]} 10. Nf3 {[%emt 0:00:18]} Bg4 {[%emt 0:00:48]} 11. h3 {[%emt 0:00:09]} Bxf3 {[%emt 0:01:06]} 12. gxf3 {[%emt 0:00:01]} f5 {[%emt 0:00:01]} 13. f4 {[%emt 0:00:18]} Nxd4 {[%emt 0:00:11]} 14. Qe3 {[%emt 0:00:29]} Re8 {[%emt 0:01:11]} 15. Qg3 {[%emt 0:00:03]} c6 {[%emt 0:00:47]} 16. h4 {[%emt 0:00:17]} b5 {[%emt 0:00:20]} 17. h5 {[%emt 0:01:42]} b4 {[%emt 0:00:24]} 18. Nb1 {[%emt 0:00:33]} Qf6 {[%emt 0:00:40]} 19. c3 {[%emt 0:00:52]} Nb5 {[%emt 0:00:06]} 20. Bxb5 {[%emt 0:01:24]} cxb5 {[%emt 0:00:06]} 21. hxg6 {[%emt 0:00:45]} hxg6 {[%emt 0:00:30]} 22. Rhg1 {[%emt 0:01:32]} bxc3 {[%emt 0:00:37]} 23. bxc3 {[%emt 0:01:07]} Rac8 {[%emt 0:02:18]} 24. Rd3 {[%emt 0:00:03]} Rc6 {[%emt 0:00:19]} 25. Qf3 {[%emt 0:01:33]} b4 {[%emt 0:02:17]} 26. Qxd5+ {[%emt 0:00:18]} Kf8 {[%emt 0:00:01]} 27. Qb3 {[%emt 0:03:04]} bxc3 {[%emt 0:00:54]} 28. Qb4+ {[%emt 0:00:04]} Kg8 {[%emt 0:00:20]} 29. Qb3+ {[%emt 0:00:10]} Qe6 {[%emt 0:01:06]} 30. Re1 {[%emt 0:01:36]} Qxb3 {[%emt 0:01:53]} 31. Rxe8+ {[%emt 0:00:02]} Kf7 {[%emt 0:00:01]} 32. axb3 {[%emt 0:00:01]} Kxe8 {[%emt 0:00:01]} 33. Kc2 {[%emt 0:00:04]} Ke7 {[%emt 0:00:28]} 34. Nxc3 {[%emt 0:01:22]} Ke6 {[%emt 0:00:26]} 35. Re3+ {[%emt 0:00:49]} Kd6 {[%emt 0:00:01]} 36. Rd3+ {[%emt 0:00:10]} Ke6 {[%emt 0:00:55]} 37. Re3+ {[%emt 0:00:03]} Kd6 {[%emt 0:00:03]} 38. Rd3+ {[%emt 0:00:01]} Kc5 {[%emt 0:00:54]} 39. Rd5+ {[%emt 0:01:14]} Kb6 {[%emt 0:00:22]} 40. Rd3 {[%emt 0:00:02]} a5 {[%emt 0:00:17]} 41. Kd2 {[%emt 0:00:17]} Rxc3 {[%emt 0:00:10]} 42. Rxc3 {[%emt 0:00:02]} Bxc3+ {[%emt 0:00:01]} 43. Kxc3 {[%emt 0:00:01]} Kc5 {[%emt 0:00:15]} 44. f3 {[%emt 0:00:02]} Kb5 {[%emt 0:00:00]} 45. Kb2 {[%emt 0:00:15]} Kb4 {[%emt 0:00:13]} 46. Kc2 {[%emt 0:00:02]} Kc5 {[%emt 0:00:06]} 47. Kc3 {[%emt 0:00:13]} Kd5 {[%emt 0:00:06]} 48. Kd3 {[%emt 0:00:04]} Kc5 {[%emt 0:00:01]} 49. Kc3 {[%emt 0:00:01]} Kb5 {[%emt 0:00:01]} 50. Kb2 {[%emt 0:00:09]} Kb4 {[%emt 0:00:09]} 51. Kc2 {[%emt 0:00:03]} Kc5 {[%emt 0:00:43]} 52. Kc3 {[%emt 0:00:04]} Kd5 {[%emt 0:00:04]} 53. Kd3 {[%emt 0:00:01]} Kc5 {[%emt 0:00:01]} 54. Kc3 {[%emt 0:00:01]} Kb5 {[%emt 0:00:01]} 55. Kb2 {[%emt 0:00:12]} Kb4 {[%emt 0:00:01]} 56. Kc2 {[%emt 0:00:02]} Ka3 {[%emt 0:00:11]} 57. Kc3 {[%emt 0:00:07]} Ka2 {[%emt 0:00:02] Check Result:0.00} 58. Kc2 {[%emt 0:00:35]} 1/2-1/2